bitfinex/quotes_BTCUSD_20250530
["timestamp","ask_amount","ask_price","bid_price","bid_amount"]
[1748638464446,0.22474467,104660.0,104650.0,0.04719459]
[1748638464677,0.22474467,104660.0,104650.0,0.04719463]
[1748638465156,0.22474467,104660.0,104650.0,0.04719475]
[1748638465362,0.22474467,104660.0,104650.0,0.05190693]
[1748638465604,0.22474467,104660.0,104650.0,0.05858747]
[1748638465810,0.86810095,104660.0,104650.0,0.02718869]
[1748638466007,0.86810095,104660.0,104650.0,0.02718887]
[1748638466537,0.86810095,104660.0,104650.0,0.02718919]
[1748638466951,0.86810095,104660.0,104650.0,0.01579677]
[1748638467208,1.35800095,104660.0,104650.0,0.01579677]
[1748638467421,1.35800095,104660.0,104650.0,0.01579685]
[1748638467860,1.35800095,104660.0,104650.0,0.01579547]
[1748638468288,1.35800095,104660.0,104650.0,0.01579525]
[1748638468690,1.35800095,104660.0,104650.0,0.00911419]
[1748638468913,1.35800095,104660.0,104650.0,0.01579473]
[1748638469119,1.35800095,104660.0,104650.0,0.00911419]
[1748638469535,1.35800095,104660.0,104650.0,0.01579468]
[1748638469783,0.81049897,104660.0,104650.0,0.01579468]
[1748638470612,0.81049897,104660.0,104650.0,0.00911419]
[1748638470817,0.81049897,104660.0,104650.0,0.01579435]
[1748638471853,0.81049897,104660.0,104650.0,0.01579406]
[1748638472421,0.81049897,104660.0,104650.0,0.01579407]
[1748638473578,0.81049897,104660.0,104650.0,0.01579381]
[1748638474300,0.81049897,104660.0,104650.0,0.01579375]
[1748638480641,1.10809897,104660.0,104650.0,0.01579375]
[1748638480852,1.12459897,104660.0,104650.0,0.01579375]
[1748638484682,1.14029897,104660.0,104650.0,0.01579375]
[1748638485631,1.14029897,104660.0,104650.0,0.00911419]
[1748638486030,1.14029897,104660.0,104650.0,0.01579374]
[1748638488702,1.68780095,104660.0,104650.0,0.01579374]
[1748638491633,1.10809897,104660.0,104650.0,0.03199374]
[1748638491855,1.10809897,104660.0,104650.0,0.01579374]
[1748638492155,1.12419897,104660.0,104650.0,0.01579374]
[1748638493325,1.12419897,104660.0,104650.0,0.00911419]
[1748638493530,1.12419897,104660.0,104650.0,0.01579465]
[1748638493737,0.63429897,104660.0,104650.0,0.01579465]
[1748638496616,0.63429897,104660.0,104650.0,0.01579521]
[1748638498260,0.63429897,104660.0,104650.0,0.01579529]
[1748638500304,0.63421897,104660.0,104650.0,0.01579529]
[1748638501395,1.18172095,104660.0,104650.0,0.01579529]
[1748638501618,1.83823415,104660.0,104650.0,0.01579529]
[1748638501857,1.74572293,104660.0,104650.0,0.00911419]
[1748638502077,2.08572293,104660.0,104650.0,0.00911419]
[1748638502299,2.05312293,104660.0,104650.0,0.00911419]
[1748638502949,0.20068788,104640.0,104630.0,0.02632536]
[1748638503174,0.59402218,104640.0,104630.0,0.03310021]
[1748638503813,0.59402218,104640.0,104630.0,0.04830021]
[1748638504253,0.59402218,104640.0,104630.0,0.05230021]
[1748638504707,0.59402218,104640.0,104630.0,0.60380219]
[1748638504949,0.59402218,104640.0,104630.0,0.60152773]
[1748638505248,0.59402218,104640.0,104630.0,0.61292047]
[1748638505647,0.59402218,104640.0,104630.0,0.59798785]
[1748638507430,0.59402218,104640.0,104630.0,0.58659511]
[1748638507787,0.59402218,104640.0,104630.0,0.03909313]
[1748638510494,0.59402218,104640.0,104630.0,0.03908828]
[1748638512064,0.59402218,104640.0,104630.0,0.03908932]
[1748638512270,0.59402218,104640.0,104630.0,0.03908933]
[1748638512482,0.59402218,104640.0,104630.0,0.03908934]
[1748638513348,0.59402218,104640.0,104630.0,0.01721145]
[1748638514740,0.59402218,104640.0,104630.0,0.0238899]
[1748638515165,0.59402218,104640.0,104630.0,0.02389232]
[1748638515581,0.59402218,104640.0,104630.0,0.02389405]
[1748638515807,1.14152416,104640.0,104630.0,0.02389405]
[1748638516019,2.22516699,104640.0,104630.0,0.02389405]
[1748638516231,2.22516699,104640.0,104630.0,0.01721145]
[1748638516684,1.13016303,104640.0,104630.0,0.01721145]
[1748638516899,1.67766501,104640.0,104630.0,0.00921145]
[1748638517118,1.13016303,104640.0,104630.0,0.01321145]
[1748638517355,1.67766501,104640.0,104630.0,0.00809317]
[1748638517565,1.67766501,104640.0,104630.0,0.00409317]
[1748638517806,1.67766501,104640.0,104630.0,9.317e-05]
[1748638518011,1.67766501,104640.0,104630.0,0.00209317]
[1748638518915,2.22516699,104640.0,104630.0,0.00209317]
[1748638519786,2.22516699,104640.0,104630.0,0.00209317]
[1748638520412,1.73526699,104640.0,104630.0,0.00209317]
[1748638523117,0.64026303,104640.0,104630.0,0.00209317]
[1748638523337,0.31108303,104640.0,104630.0,0.00209317]
[1748638523558,0.95118501,104640.0,104630.0,0.01729317]
[1748638523767,1.24858501,104640.0,104630.0,0.01729317]
[1748638524190,0.85858501,104640.0,104630.0,0.01729317]
[1748638524610,1.24858501,104640.0,104630.0,0.03359317]
[1748638524823,0.85858501,104640.0,104630.0,0.03359317]
[1748638525231,1.15598501,104640.0,104630.0,0.03359317]
[1748638526913,1.15598501,104640.0,104630.0,0.01729317]
[1748638528062,1.15598501,104640.0,104630.0,0.00209317]
[1748638528063,0.85858501,104640.0,104630.0,0.00209317]
[1748638528280,1.15598501,104640.0,104630.0,0.00209317]
[1748638528743,1.17118501,104640.0,104630.0,0.01122114]
[1748638528969,1.71868699,104640.0,104630.0,0.01122114]
[1748638529422,0.60848303,104640.0,104630.0,0.01122114]
[1748638529639,1.15598501,104640.0,104630.0,0.01122114]
[1748638534754,1.17248501,104640.0,104630.0,0.01122114]
[1748638536069,1.1819895,104640.0,104630.0,0.01122114]
[1748638537532,1.17240501,104640.0,104630.0,0.01122114]
[1748638538117,1.15590501,104640.0,104630.0,0.01122114]
[1748638541057,1.15590501,104640.0,104630.0,0.01122114]
[1748638542709,0.85858501,104640.0,104630.0,0.01122114]
[1748638542919,1.15590501,104640.0,104630.0,0.02722114]
[1748638545579,1.15590501,104640.0,104630.0,0.01122114]
[1748638546982,1.17100501,104640.0,104630.0,0.01122114]
[1748638549740,1.18670501,104640.0,104630.0,0.01122114]
[1748638550986,1.17100501,104640.0,104630.0,0.01122114]
[1748638551397,1.17100501,104640.0,104630.0,0.01792215]
[1748638552052,1.17100501,104640.0,104630.0,0.01792208]
[1748638552857,1.17100501,104640.0,104630.0,0.01792233]
[1748638553577,1.17100501,104640.0,104630.0,0.01792243]
[1748638553788,0.62342303,104640.0,104630.0,0.01792243]
[1748638553993,1.15582501,104640.0,104630.0,0.01792241]
[1748638555526,1.15582501,104640.0,104630.0,0.0179224]
[1748638555974,1.15582501,104640.0,104630.0,0.01792243]
[1748638557001,0.60832303,104640.0,104630.0,0.01792243]
[1748638557205,0.60832303,104640.0,104630.0,0.0179224]
[1748638557417,1.15582501,104640.0,104630.0,0.0179224]
[1748638557633,1.15582501,104640.0,104630.0,0.01792239]
[1748638557839,1.15582501,104640.0,104630.0,0.0179224]
[1748638558800,1.15582501,104640.0,104630.0,0.01122114]
[1748638559039,1.15582501,104640.0,104630.0,0.01792241]
[1748638560159,1.17232501,104640.0,104630.0,0.01792241]
[1748638560369,1.17232501,104640.0,104630.0,0.01792242]
[1748638560630,1.17232501,104640.0,104630.0,0.01122114]
[1748638560783,1.17232501,104640.0,104630.0,0.0179224]
[1748638561208,1.17232501,104640.0,104630.0,0.01122114]
[1748638561412,0.62482303,104640.0,104630.0,0.0179224]
[1748638561618,1.15582501,104640.0,104630.0,0.01122114]
[1748638561824,1.15574501,104640.0,104630.0,0.01792241]
[1748638562548,1.15574501,104640.0,104630.0,0.01122114]
[1748638562968,1.15574501,104640.0,104630.0,0.01792241]
[1748638564032,1.15574501,104640.0,104630.0,0.01792249]
[1748638565092,1.15574501,104640.0,104630.0,0.01122114]
[1748638565296,1.15574501,104640.0,104630.0,0.01792252]
[1748638565653,1.15574501,104640.0,104630.0,0.01792255]
[1748638566187,1.15574501,104640.0,104630.0,0.01122114]
[1748638566394,1.17164501,104640.0,104630.0,0.01792255]
[1748638566605,1.17164501,104640.0,104630.0,0.01792226]
[1748638566800,1.17164501,104640.0,104630.0,0.01792225]
[1748638567007,1.17164501,104640.0,104630.0,0.01792223]
[1748638567241,1.17164501,104640.0,104630.0,0.01792197]
[1748638567477,1.17164501,104640.0,104630.0,0.01122114]
[1748638567958,1.17164501,104640.0,104630.0,0.01792198]
[1748638568170,1.17164501,104640.0,104630.0,0.01122114]
[1748638568380,1.17160501,104640.0,104630.0,0.01122114]
[1748638568564,1.17160501,104640.0,104630.0,0.01792199]
[1748638569008,1.17160501,104640.0,104630.0,0.01122114]
[1748638569216,0.87448501,104640.0,104630.0,0.01792197]
[1748638569421,1.17160501,104640.0,104630.0,0.01792197]
[1748638569625,1.17160501,104640.0,104630.0,0.01792209]
[1748638570464,1.17160501,104640.0,104630.0,0.0179229]
[1748638570892,1.17160501,104640.0,104630.0,0.01122114]
[1748638571114,1.17160501,104640.0,104630.0,0.01792269]
[1748638571392,1.17160501,104640.0,104630.0,0.01792285]
[1748638571643,1.17160501,104640.0,104630.0,0.01792253]
[1748638571847,1.17160501,104640.0,104630.0,0.01792249]
[1748638572480,1.17160501,104640.0,104630.0,0.01792219]
[1748638572691,1.17160501,104640.0,104630.0,0.01792111]
[1748638573107,1.17160501,104640.0,104630.0,0.01792085]
[1748638573346,1.17160501,104640.0,104630.0,0.01792065]
[1748638573554,1.17160501,104640.0,104630.0,0.01792067]
[1748638573555,1.15570501,104640.0,104630.0,0.01792067]
[1748638574420,1.15570501,104640.0,104630.0,0.01792039]
[1748638574671,1.15570501,104640.0,104630.0,0.01122114]
[1748638574880,1.15570501,104640.0,104630.0,0.01792038]
[1748638575098,1.15570501,104640.0,104630.0,0.01792035]
[1748638575532,1.15570501,104640.0,104630.0,0.01792019]
[1748638575965,1.15570501,104640.0,104630.0,0.01122114]
[1748638576179,1.15570501,104640.0,104630.0,0.01792003]
[1748638576602,1.15570501,104640.0,104630.0,0.01791828]
[1748638576807,1.17170501,104640.0,104630.0,0.01791828]
[1748638577071,1.17170501,104640.0,104630.0,0.01791725]
[1748638577242,0.62420303,104640.0,104630.0,0.00878928]
[1748638577453,1.17170501,104640.0,104630.0,0.00878922]
[1748638577711,1.17170501,104640.0,104630.0,0.00878881]
[1748638577885,1.71920699,104640.0,104630.0,0.00878881]
[1748638578298,1.17170501,104640.0,104630.0,0.00878881]
[1748638578527,1.17170501,104640.0,104630.0,0.00209317]
[1748638578744,1.17170501,104640.0,104630.0,0.0087887]
[1748638578951,1.17170501,104640.0,104630.0,0.00878869]
[1748638579489,1.17170501,104640.0,104630.0,0.00878866]
[1748638579690,1.15570501,104640.0,104630.0,0.04078866]
[1748638580297,1.15570501,104640.0,104630.0,0.00878866]
[1748638580450,1.15570501,104640.0,104630.0,0.00209317]
[1748638580662,1.15570501,104640.0,104630.0,0.00878855]
[1748638581256,1.15570501,104640.0,104630.0,0.00878836]
[1748638582611,1.15570501,104640.0,104630.0,0.00878788]
[1748638582796,1.15570501,104640.0,104630.0,0.00878777]
[1748638582995,1.15570501,104640.0,104630.0,0.00209317]
[1748638583205,1.15570501,104640.0,104630.0,0.00878798]
[1748638583942,1.15570501,104640.0,104630.0,0.01792951]
[1748638584130,1.15570501,104640.0,104630.0,0.01792981]
[1748638584334,1.15570501,104640.0,104630.0,0.01792984]
[1748638584853,1.15570501,104640.0,104630.0,0.01793003]
[1748638585049,1.15570501,104640.0,104630.0,0.0112347]
[1748638585925,1.12350501,104640.0,104630.0,0.0112347]
[1748638586167,1.08150501,104640.0,104630.0,0.0112347]
[1748638586373,1.0910614,104640.0,104630.0,0.01793152]
[1748638587372,1.0910614,104640.0,104630.0,0.01793199]
[1748638587796,1.0910614,104640.0,104630.0,0.01793204]
[1748638588625,0.7939414,104640.0,104630.0,0.01793204]
[1748638588865,1.0909014,104640.0,104630.0,0.01793204]
[1748638589074,1.0909014,104640.0,104630.0,0.01793212]
[1748638589444,1.0909014,104640.0,104630.0,0.01793213]
[1748638589979,1.0909014,104640.0,104630.0,0.0112347]
[1748638590187,1.0909014,104640.0,104630.0,0.01793234]
[1748638590806,1.0909014,104640.0,104630.0,0.01793257]
[1748638591007,1.0909014,104640.0,104630.0,0.0179329]
[1748638591195,1.0909014,104640.0,104630.0,0.01793293]
[1748638592130,1.0909014,104640.0,104630.0,0.01793335]
[1748638592411,1.0909014,104640.0,104630.0,0.01793356]
[1748638594182,1.0909014,104640.0,104630.0,0.01793401]
[1748638594989,1.0909014,104640.0,104630.0,0.01793392]
[1748638595505,1.0909014,104640.0,104630.0,0.01793429]
[1748638596147,1.0909014,104640.0,104630.0,0.0112347]
[1748638596376,1.0909014,104640.0,104630.0,0.01793494]
[1748638597936,1.0909014,104640.0,104630.0,0.01793522]
[1748638599399,1.0909014,104640.0,104630.0,0.01793521]
[1748638599610,1.0909014,104640.0,104630.0,0.0179352]
[1748638600585,1.0909014,104640.0,104630.0,0.01793519]
[1748638602036,1.0909014,104640.0,104630.0,0.0112347]
[1748638602238,1.0909014,104640.0,104630.0,0.01793519]
[1748638603863,0.24643942,104640.0,104630.0,0.01793519]
[1748638604050,1.0907814,104640.0,104630.0,0.01793519]
[1748638604250,1.0907814,104640.0,104630.0,0.0112347]
[1748638604655,1.0907814,104640.0,104630.0,0.01793593]
[1748638604827,1.0907814,104640.0,104630.0,0.0112347]
[1748638607393,1.0907814,104640.0,104630.0,0.01793455]
[1748638607529,1.0907814,104640.0,104630.0,0.0112347]
[1748638608938,1.0907814,104640.0,104630.0,0.01793464]
[1748638609136,1.0907814,104640.0,104630.0,0.0112347]
[1748638609561,1.0907814,104640.0,104630.0,0.01793453]
[1748638609768,1.0907814,104640.0,104630.0,0.0112347]
[1748638609972,1.0907814,104640.0,104630.0,0.01793474]
[1748638610403,1.0907814,104640.0,104630.0,0.02463475]
[1748638610617,1.0907814,104640.0,104630.0,0.02463476]
[1748638610831,1.0907814,104640.0,104630.0,0.0246348]
[1748638611042,1.0907814,104640.0,104630.0,0.01793474]
[1748638612121,1.0907814,104640.0,104630.0,0.02463478]
[1748638612784,1.0907814,104640.0,104630.0,0.01793474]
[1748638612983,1.0907814,104640.0,104630.0,0.02463475]
[1748638613390,0.7939414,104640.0,104630.0,0.02463472]
[1748638613626,0.7939414,104640.0,104630.0,0.01793474]
[1748638613831,1.34144338,104640.0,104630.0,0.02463472]
[1748638614643,1.63820338,104640.0,104630.0,0.02463472]
[1748638614946,1.63820338,104640.0,104630.0,0.02463469]
[1748638615388,1.63820338,104640.0,104630.0,0.02463467]
[1748638617073,1.63820338,104640.0,104630.0,0.02463484]
[1748638617740,1.0907014,104640.0,104630.0,0.02463486]
[1748638617892,1.66980338,104640.0,104630.0,0.02463486]
[1748638618495,1.66980338,104640.0,104630.0,0.02463483]
[1748638619241,1.66980338,104640.0,104630.0,0.02463482]
[1748638619473,1.66980338,104640.0,104630.0,0.02463481]
[1748638619675,1.66980338,104640.0,104630.0,0.01793474]
[1748638619850,0.57479942,104640.0,104630.0,0.02463485]
[1748638620059,0.55849942,104640.0,104630.0,0.02463485]
[1748638620261,1.63820338,104640.0,104630.0,0.02463485]
[1748638620473,1.0907014,104640.0,104630.0,0.01793474]
[1748638620671,1.0906214,104640.0,104630.0,0.02463486]
[1748638621073,1.0906214,104640.0,104630.0,0.01793474]
[1748638621572,1.0906214,104640.0,104630.0,0.02463482]
[1748638622274,1.0906214,104640.0,104630.0,0.02463447]
[1748638622757,1.0906214,104640.0,104630.0,0.02463333]
[1748638623306,1.0906214,104640.0,104630.0,0.01793474]
[1748638623506,1.0906214,104640.0,104630.0,0.02463304]
[1748638624129,1.0906214,104640.0,104630.0,0.01793474]
[1748638624335,1.0906214,104640.0,104630.0,0.02463307]
[1748638624635,1.0906214,104640.0,104630.0,0.02463306]
[1748638624795,1.0906214,104640.0,104630.0,0.01793474]
[1748638624994,1.0906214,104640.0,104630.0,0.02463306]
[1748638625402,1.0906214,104640.0,104630.0,0.01793474]
[1748638625759,1.0906214,104640.0,104630.0,0.02463312]
[1748638625959,1.0906214,104640.0,104630.0,0.01793474]
[1748638626082,1.0906214,104640.0,104630.0,0.02463286]
[1748638626818,1.1060214,104640.0,104630.0,0.02463286]
[1748638627021,1.1221214,104640.0,104630.0,0.02463254]
[1748638627221,1.1221214,104640.0,104630.0,0.02463251]
[1748638627347,1.1221214,104640.0,104630.0,0.01793474]
[1748638627551,1.1221214,104640.0,104630.0,0.0246325]
[1748638627812,1.1221214,104640.0,104630.0,0.02463256]
[1748638628021,1.1221214,104640.0,104630.0,0.02463254]
[1748638628630,1.1221214,104640.0,104630.0,0.02463267]
[1748638629058,1.1221214,104640.0,104630.0,0.02463269]
[1748638629680,1.1221214,104640.0,104630.0,0.02463275]
[1748638629888,0.57461942,104640.0,104630.0,0.02463275]
[1748638630323,1.1221214,104640.0,104630.0,0.02463275]
[1748638630744,1.2143214,104640.0,104630.0,0.02463286]
[1748638631164,1.2143214,104640.0,104630.0,0.02463289]
[1748638632451,1.2143214,104640.0,104630.0,0.02463301]
[1748638632889,1.2143214,104640.0,104630.0,0.01793474]
[1748638633102,1.2143214,104640.0,104630.0,0.024633]
[1748638634023,1.2143214,104640.0,104630.0,0.01793474]
[1748638634283,1.2143214,104640.0,104630.0,0.02463291]
[1748638634489,1.76182338,104640.0,104630.0,0.02463291]
[1748638634905,2.10182338,104640.0,104630.0,0.01793474]
[1748638635524,2.10182338,104640.0,104630.0,0.00879321]
[1748638636717,2.64932536,104640.0,104630.0,0.00879321]
[1748638636886,2.65932536,104640.0,104630.0,0.00879321]
[1748638637455,2.68197236,104640.0,104630.0,0.00879321]
[1748638638500,2.68197236,104640.0,104630.0,0.00779321]
[1748638638708,2.68297236,104640.0,104630.0,0.00679321]
[1748638640191,2.65147236,104640.0,104630.0,0.00679321]
[1748638640400,2.74398358,104640.0,104630.0,0.00679321]
[1748638641260,2.65147236,104640.0,104630.0,0.00679321]
[1748638645219,3.06431236,104640.0,104630.0,0.00679321]
[1748638645434,2.76763236,104640.0,104630.0,0.00679321]
[1748638645653,3.06411236,104640.0,104630.0,0.00679321]
[1748638648566,2.51661038,104640.0,104630.0,0.00679321]
[1748638650914,3.06411236,104640.0,104630.0,0.00679321]
[1748638654261,2.12793038,104640.0,104630.0,0.00679321]
[1748638654481,2.51645038,104640.0,104630.0,0.00679321]
[1748638655204,2.49380338,104640.0,104630.0,0.00679321]
[1748638656081,2.50890338,104640.0,104630.0,0.00679321]
[1748638656279,2.12038338,104640.0,104630.0,0.00679321]
[1748638656491,2.50886338,104640.0,104630.0,0.00679321]
[1748638656697,3.07146536,104640.0,104630.0,0.00679321]
[1748638661506,3.16397658,104640.0,104630.0,0.00679321]
[1748638662258,3.07146536,104640.0,104630.0,0.00679321]
[1748638663191,3.04126536,104640.0,104630.0,0.00679321]
[1748638663601,3.07316536,104640.0,104630.0,0.00679321]
[1748638663807,3.05746536,104640.0,104630.0,0.00679321]
[1748638664012,3.07316536,104640.0,104630.0,0.00679321]
[1748638664207,3.05746536,104640.0,104630.0,0.00679321]
[1748638664913,3.04126536,104640.0,104630.0,0.00679321]
[1748638665371,4.81628252,104640.0,104630.0,0.00670004]
[1748638665590,0.56484514,104610.0,104600.0,0.01883822]
[1748638665806,2.1747034,104610.0,104600.0,0.01932664]
[1748638666034,2.1747034,104610.0,104600.0,0.00789972]
[1748638666470,2.27721462,104610.0,104600.0,0.00789972]
[1748638666899,2.316162,104610.0,104600.0,0.00789972]
[1748638667523,2.87305462,104610.0,104600.0,0.00789972]
[1748638667733,2.86305462,104610.0,104600.0,0.00789972]
[1748638667939,2.88781839,104610.0,104600.0,0.00789972]
[1748638668144,2.21365078,104610.0,104600.0,0.00789972]
[1748638673880,2.21361078,104610.0,104600.0,0.00789972]
[1748638682054,2.21361078,104610.0,104600.0,0.00789972]
[1748638683332,2.20861078,104610.0,104600.0,0.00789972]
[1748638683763,1.82045078,104610.0,104600.0,0.00789972]
[1748638683981,1.10367082,104610.0,104600.0,0.00789972]
[1748638684409,2.19867478,104610.0,104600.0,0.00789972]
[1748638685138,1.77971478,104610.0,104600.0,0.00789972]
[1748638685347,2.16787478,104610.0,104600.0,0.00789972]
[1748638685555,2.18387478,104610.0,104600.0,0.00789972]
[1748638685770,2.19917478,104610.0,104600.0,0.00789972]
[1748638686196,1.81101478,104610.0,104600.0,0.00789972]
[1748638686407,2.19913478,104610.0,104600.0,0.00789972]
[1748638689436,2.61213478,104610.0,104600.0,0.00789972]
[1748638689776,1.51713082,104610.0,104600.0,0.00789972]
[1748638689980,2.61213478,104610.0,104600.0,0.00789972]
[1748638691719,2.21401478,104610.0,104600.0,0.00789972]
[1748638691935,2.60209478,104610.0,104600.0,0.00789972]
[1748638694944,1.50709082,104610.0,104600.0,0.00789972]
[1748638695366,2.60209478,104610.0,104600.0,0.00789972]
[1748638703188,2.5517834,104610.0,104600.0,0.00789972]
[1748638704745,2.2556234,104610.0,104600.0,0.00789972]
[1748638704963,2.5516634,104610.0,104600.0,0.00789972]
[1748638709814,2.5678634,104610.0,104600.0,0.00789972]
[1748638711328,2.5516634,104610.0,104600.0,0.00789972]
[1748638711776,2.5831634,104610.0,104600.0,0.00789972]
[1748638711993,3.10916538,104610.0,104600.0,0.00789972]
[1748638712215,3.09916538,104610.0,104600.0,0.00789972]
[1748638712428,3.12786438,104610.0,104600.0,0.00789972]
[1748638713117,3.12986438,104610.0,104600.0,0.00789972]
[1748638713559,3.13086438,104610.0,104600.0,0.00789972]
[1748638714035,3.20339888,104610.0,104600.0,0.00789972]
[1748638714248,3.22816265,104610.0,104600.0,0.00789972]
[1748638714468,1.65990943,104580.0,104570.0,0.0047]
[1748638714674,2.14348373,104580.0,104570.0,0.0047]
[1748638714883,2.17478373,104580.0,104570.0,0.0047]
[1748638715318,2.73167032,104580.0,104570.0,0.0047]
[1748638715525,2.18416834,104580.0,104570.0,0.0047]
[1748638715744,2.71037032,104580.0,104570.0,0.0047]
[1748638715969,1.58252815,104580.0,104570.0,0.0047]
[1748638716196,2.68013451,104580.0,104570.0,0.0047]
[1748638716671,2.65537074,104580.0,104570.0,0.0047]
[1748638717350,2.74163597,104580.0,104570.0,0.0047]
[1748638718679,2.25173597,104580.0,104570.0,0.0047]
[1748638718886,2.24173597,104580.0,104570.0,0.0047]
[1748638720018,2.24373597,104580.0,104570.0,0.0047]
[1748638720481,2.27843597,104580.0,104570.0,0.0047]
[1748638720696,2.26183597,104580.0,104570.0,0.0047]
[1748638721142,2.26187597,104580.0,104570.0,0.0047]
[1748638721363,2.27767597,104580.0,104570.0,0.0047]
[1748638722226,2.27697597,104580.0,104570.0,0.0047]
[1748638722645,2.26187597,104580.0,104570.0,0.0047]
[1748638723557,2.26183597,104580.0,104570.0,0.0047]
[1748638723984,2.24673597,104580.0,104570.0,0.0047]
[1748638725459,2.27544297,104580.0,104570.0,0.0047]
[1748638726212,1.88772297,104580.0,104570.0,0.0047]
[1748638726414,2.18901774,104580.0,104570.0,0.0047]
[1748638728138,2.23901774,104580.0,104570.0,0.0047]
[1748638728341,2.20421774,104580.0,104570.0,0.0047]
[1748638728545,2.23901774,104580.0,104570.0,0.0047]
[1748638730145,2.27001774,104580.0,104570.0,0.0047]
[1748638730346,2.36252896,104580.0,104570.0,0.0047]
[1748638730548,2.33152896,104580.0,104570.0,0.0047]
[1748638730773,0.75385138,104580.0,104570.0,0.0047]
[1748638730981,1.20861138,104580.0,104570.0,0.0047]
[1748638731156,2.03879371,104580.0,104570.0,0.0047]
[1748638731780,2.08433456,104580.0,104570.0,0.0047]
[1748638732003,2.05333456,104580.0,104570.0,0.0047]
[1748638732418,2.17684578,104580.0,104570.0,0.0047]
[1748638732828,2.14584578,104580.0,104570.0,0.0047]
[1748638733398,2.17684578,104580.0,104570.0,0.0047]
[1748638735151,2.75460896,104580.0,104570.0,0.0047]
[1748638735372,2.74460896,104580.0,104570.0,0.0047]
[1748638736251,0.19135093,104520.0,104510.0,0.54880318]
[1748638736464,0.19135093,104520.0,104510.0,0.55770931]
[1748638737133,0.19135093,104520.0,104510.0,0.55771099]
[1748638737352,0.19235093,104520.0,104510.0,0.55480318]
[1748638737562,0.19239949,104520.0,104510.0,0.56392549]
[1748638737781,0.19239949,104520.0,104510.0,0.57283302]
[1748638738001,0.19239949,104520.0,104510.0,0.58778342]
[1748638738267,0.19239949,104520.0,104510.0,0.57887589]
[1748638738467,0.19239949,104520.0,104510.0,0.58778554]
[1748638738682,0.19239949,104520.0,104510.0,0.58778822]
[1748638739142,0.19239949,104520.0,104510.0,0.04851171]
[1748638739364,0.19239949,104520.0,104510.0,0.04498504]
[1748638740431,0.19239949,104520.0,104510.0,0.04498789]
[1748638740646,0.19239949,104520.0,104510.0,0.05640754]
[1748638740879,0.85159782,104520.0,104510.0,0.05641357]
[1748638741309,0.20196685,104520.0,104510.0,0.05641251]
[1748638741524,0.20196685,104520.0,104510.0,0.0588043]
[1748638741742,0.20096685,104520.0,104510.0,0.04138265]
[1748638742181,0.20096685,104520.0,104510.0,0.0324645]
[1748638742369,0.20096685,104520.0,104510.0,0.58419045]
[1748638742604,0.20096685,104520.0,104510.0,0.58179866]
[1748638742823,0.20096685,104520.0,104510.0,0.03599548]
[1748638743045,0.20096685,104520.0,104510.0,0.05380689]
[1748638743695,0.20096685,104520.0,104510.0,0.04488416]
[1748638743907,0.20096685,104520.0,104510.0,0.05381152]
[1748638744596,0.20096685,104520.0,104510.0,0.05381477]
[1748638744809,0.20096685,104520.0,104510.0,0.05381478]
[1748638745019,0.20096685,104520.0,104510.0,0.24518402]
[1748638745237,0.20096685,104520.0,104510.0,0.24279146]
[1748638745458,0.20096685,104520.0,104510.0,0.24279121]
[1748638745669,0.20096685,104520.0,104510.0,0.25235967]
[1748638745920,0.20096685,104520.0,104510.0,0.25236095]
[1748638746155,0.19139949,104520.0,104510.0,0.26757161]
[1748638746367,0.19139949,104520.0,104510.0,0.26757174]
[1748638746592,0.19139949,104520.0,104510.0,0.24907226]
[1748638746812,0.19139949,104520.0,104510.0,0.05770302]
[1748638747025,0.19139949,104520.0,104510.0,0.26103252]
[1748638747240,0.19139949,104520.0,104510.0,0.25864072]
[1748638747455,0.19139949,104520.0,104510.0,0.26757223]
[1748638747690,0.19139949,104520.0,104510.0,0.25864072]
[1748638748352,0.19139949,104520.0,104510.0,0.26757295]
[1748638748571,0.19139949,104520.0,104510.0,0.26820909]
[1748638749656,0.19139949,104520.0,104510.0,0.27714101]
[1748638749875,0.19139949,104520.0,104510.0,0.25615299]
[1748638750102,0.19139949,104520.0,104510.0,0.0552153]
[1748638750316,0.19139949,104520.0,104510.0,0.05760711]
[1748638750544,0.19139949,104520.0,104510.0,0.05760729]
[1748638750756,0.19139949,104520.0,104510.0,0.04867518]
[1748638750974,0.19139949,104520.0,104510.0,0.05760727]
[1748638751637,0.19139949,104520.0,104510.0,0.05760766]
[1748638751858,0.19139949,104520.0,104510.0,0.04867518]
[1748638752807,0.19139949,104520.0,104510.0,0.25854504]
[1748638753015,0.19139949,104520.0,104510.0,0.24722107]
[1748638753229,0.19139949,104520.0,104510.0,0.25615347]
[1748638753880,0.19139949,104520.0,104510.0,0.25615338]
[1748638754096,0.19139949,104520.0,104510.0,0.79602425]
[1748638754300,0.19139949,104520.0,104510.0,0.80495658]
[1748638754510,0.19139949,104520.0,104510.0,0.79602425]
[1748638754715,0.19139949,104520.0,104510.0,0.80559262]
[1748638755771,0.19139949,104520.0,104510.0,0.79064222]
[1748638755983,0.19139949,104520.0,104510.0,0.7995754]
[1748638756436,0.19139949,104520.0,104510.0,0.79064222]
[1748638756647,0.19139949,104520.0,104510.0,0.78107385]
[1748638757302,0.19139949,104520.0,104510.0,0.58013615]
[1748638757529,0.19139949,104520.0,104510.0,0.77150539]
[1748638757966,0.19139949,104520.0,104510.0,0.58013615]
[1748638758865,0.19139949,104520.0,104510.0,0.59508685]
[1748638759291,0.19139949,104520.0,104510.0,0.60401868]
[1748638759512,0.19139949,104520.0,104510.0,0.60401935]
[1748638759730,0.19139949,104520.0,104510.0,0.60401937]
[1748638760155,0.19139949,104520.0,104510.0,0.05521619]
[1748638760363,0.19139949,104520.0,104510.0,0.60401937]
[1748638760574,0.19139949,104520.0,104510.0,0.59508685]
[1748638762153,0.19139949,104520.0,104510.0,0.78645609]
[1748638762361,0.19139949,104520.0,104510.0,0.79602455]
[1748638762853,0.19139949,104520.0,104510.0,0.59508685]
[1748638763183,0.19139949,104520.0,104510.0,0.78645609]
[1748638763597,0.20096685,104520.0,104510.0,0.80559254]
[1748638763814,0.21053393,104520.0,104510.0,0.80559254]
[1748638764645,0.21053393,104520.0,104510.0,0.81516054]
[1748638765081,0.019183,104520.0,104510.0,0.81516054]
[1748638765286,0.21053393,104520.0,104510.0,0.82472836]
[1748638765502,0.22010138,104520.0,104510.0,0.82472836]
[1748638765705,0.22010138,104520.0,104510.0,0.80977766]
[1748638767203,0.22966892,104520.0,104510.0,0.80020984]
[1748638768357,0.22966892,104520.0,104510.0,0.80977775]
[1748638768800,0.22966892,104520.0,104510.0,0.82472825]
[1748638769932,0.22010184,104520.0,104510.0,0.80559234]
[1748638770956,0.21053448,104520.0,104510.0,0.80559234]
[1748638771167,0.20096703,104520.0,104510.0,0.80559234]
[1748638774529,0.20096703,104520.0,104510.0,0.81516043]
[1748638775641,0.20096703,104520.0,104510.0,0.80020993]
[1748638776338,0.02875018,104520.0,104510.0,0.80977775]
[1748638776536,0.22966856,104520.0,104510.0,0.80977775]
[1748638776754,0.03831763,104520.0,104510.0,0.80977775]
[1748638776954,0.22966856,104520.0,104510.0,0.80977775]
[1748638777495,0.03831763,104520.0,104510.0,0.80977775]
[1748638777733,0.22966856,104520.0,104510.0,0.80977775]